bitfinex/quotes_ETHUSD_20250411
["timestamp","ask_amount","ask_price","bid_price","bid_amount"]
[1744380622319,6.38488,1566.2,1566.1,49.803]
[1744380622728,12.47488,1566.2,1566.1,49.803]
[1744380622940,6.38569,1566.0,1565.9,9.739]
[1744380623234,12.47491,1566.2,1565.9,16.12506]
[1744380623447,6.09,1566.2,1565.9,22.51112]
[1744380623667,18.86,1566.2,1565.9,9.739]
[1744380623848,14.41454,1566.2,1565.9,9.739]
[1744380624052,12.47497,1566.2,1565.9,9.739]
[1744380624261,12.47497,1566.2,1565.9,16.12507]
[1744380624464,6.38529,1566.1,1565.9,9.739]
[1744380624784,6.38528,1566.1,1565.7,5.92849634]
[1744380624948,6.38744,1565.6,1565.2,7.95716]
[1744380625130,6.38744,1565.6,1565.1,9.739]
[1744380625131,6.38869,1565.3,1565.1,9.739]
[1744380625335,6.38869,1565.3,1564.6,49.775]
[1744380625336,6.38895,1565.2,1564.7,17.85609849]
[1744380625542,6.6257,1565.3,1564.7,17.85609849]
[1744380625769,6.09,1565.4,1564.9,4.37959634]
[1744380625963,6.09,1565.4,1565.0,6.82759963]
[1744380626136,6.38869,1565.3,1564.9,10.76963634]
[1744380626336,12.77742,1565.3,1564.9,17.15964634]
[1744380626562,18.86651,1565.4,1565.0,6.38954]
[1744380626766,18.86651,1565.4,1565.1,12.77872]
[1744380626767,6.09,1565.4,1565.1,12.77872]
[1744380626965,6.92353,1565.5,1565.1,6.38936]
[1744380626966,13.01353,1565.5,1565.1,6.38936]
[1744380627153,13.01353,1565.5,1565.1,12.77872]
[1744380627341,19.40152,1565.5,1565.1,12.77872]
[1744380627541,8.565852,1565.5,1565.0,6.38974]
[1744380627753,6.38848,1565.4,1565.0,6.38974]
[1744380627972,12.77699,1565.4,1565.0,6.38974]
[1744380628149,6.38832,1565.4,1565.0,12.77928]
[1744380628342,12.7767,1565.4,1565.0,6.38963]
[1744380628669,6.38961,1565.1,1564.7,18.17121704]
[1744380628867,6.38899,1565.2,1564.8,6.4543225]
[1744380629040,6.38899,1565.2,1564.8,12.7809]
[1744380629243,6.38899,1565.2,1564.9,6.39004]
[1744380629483,12.77829,1565.2,1564.8,12.78085]
[1744380629642,6.38825,1565.4,1565.0,6.38947]
[1744380629843,6.6257,1565.5,1564.9,1.278046]
[1744380630065,6.38825,1565.4,1565.0,6.45366271]
[1744380630265,6.38825,1565.4,1565.1,6.38933]
[1744380630569,6.92352,1565.5,1565.2,6.38886]
[1744380630772,6.92352,1565.5,1565.2,12.77759]
[1744380630975,6.09,1565.7,1565.3,0.55]
[1744380631138,6.3861,1565.9,1565.6,6.38716]
[1744380631336,6.38544,1566.1,1565.8,6.38647]
[1744380631542,6.38644,1565.9,1565.7,9.741]
[1744380631745,6.38644,1565.9,1565.4,57.74136]
[1744380631746,6.38697,1565.7,1565.4,51.3533]
[1744380631957,6.38734,1565.6,1565.4,49.786]
[1744380632159,6.92231,1565.8,1565.4,56.23844548]
[1744380632356,6.38661,1565.8,1565.4,62.62651548]
[1744380632650,6.38617,1565.9,1565.4,49.786]
[1744380632886,6.38617,1565.9,1565.6,6.3873]
[1744380633063,0.5357,1566.0,1565.5,6.38764]
[1744380633373,12.77243,1565.9,1565.5,6.38759]
[1744380633561,6.38664,1565.8,1565.4,66.94169634]
[1744380633764,0.5357,1566.0,1565.4,60.61804182]
[1744380633965,6.38518,1566.2,1565.8,6.38613]
[1744380634172,6.38518,1566.2,1565.9,6.38597]
[1744380634478,12.77029,1566.2,1565.8,22.51388]
[1744380634646,6.38531,1566.1,1565.8,16.12744]
[1744380634842,6.38511,1566.2,1565.8,18.81673563]
[1744380635046,13.30492,1566.3,1565.9,6.38598]
[1744380635447,12.77004,1566.2,1565.9,6.38598]
[1744380635669,6.38493,1566.2,1565.9,6.38598]
[1744380636178,12.76998,1566.2,1565.9,6.38598]
[1744380636581,12.77006,1566.2,1565.8,25.67580416]
[1744380636784,6.38587,1566.0,1565.8,9.741]
[1744380637188,12.77084,1566.1,1565.8,9.741]
[1744380637577,6.3861,1565.9,1565.8,9.741]
[1744380637961,6.9218,1565.9,1565.8,9.741]
[1744380638381,6.3871,1565.7,1565.4,63.90659634]
[1744380638686,12.77427,1565.7,1565.4,76.74706182]
[1744380638874,6.38732,1565.6,1565.4,65.97944548]
[1744380639081,6.38773,1565.5,1565.4,59.527]
[1744380639275,6.38773,1565.5,1565.4,9.741]
[1744380639482,6.38868,1565.3,1565.0,24.08379]
[1744380639787,6.38826,1565.4,1565.0,24.08379]
[1744380639984,13.01355,1565.5,1565.0,14.36802479]
[1744380640179,18.86579,1565.5,1565.1,6.38936]
[1744380640388,18.86579,1565.5,1565.1,12.77861]
[1744380640578,6.09,1565.5,1565.0,20.75776479]
[1744380640882,12.47788,1565.5,1565.2,6.38895]
[1744380641189,6.09,1565.5,1565.2,12.77778]
[1744380641408,12.47773,1565.5,1565.2,6.38883]
[1744380641705,12.47773,1565.5,1565.1,6.38926]
[1744380641983,18.86586,1565.5,1565.2,6.38891]
[1744380642185,6.09,1565.5,1565.1,2.71469348]
[1744380642388,6.09,1565.5,1565.3,6.38819]
[1744380642786,6.09,1565.5,1565.4,6.38814]
[1744380643095,6.92272,1565.7,1565.3,6.38819]
[1744380643281,6.38746,1565.6,1565.3,6.38819]
[1744380643459,6.38746,1565.6,1565.3,7.665895]
[1744380643660,6.38746,1565.6,1565.3,12.7766]
[1744380643889,6.38746,1565.6,1565.3,6.38819]
[1744380644089,6.92272,1565.7,1565.3,6.38819]
[1744380644293,6.38657,1565.8,1565.4,6.38779]
[1744380644590,12.77326,1565.8,1565.4,6.38779]
[1744380644793,12.77326,1565.8,1565.4,14.3395]
[1744380644963,12.77326,1565.8,1565.4,15.77983781]
[1744380645158,6.09,1565.9,1565.5,9.742]
[1744380645159,12.47622,1565.9,1565.5,9.742]
[1744380645491,6.38716,1565.7,1565.5,9.742]
[1744380645655,6.38785,1565.5,1565.1,25.15285634]
[1744380645861,6.38732,1565.6,1565.1,9.742]
[1744380646059,6.38869,1565.3,1565.1,9.742]
[1744380646597,6.38895,1565.2,1565.1,9.742]
[1744380646906,6.38997,1565.0,1564.7,59.507]
[1744380647101,12.78083,1564.9,1564.7,59.507]
[1744380647391,13.21718,1565.0,1564.7,65.89771]
[1744380647590,6.82717,1565.0,1564.7,59.507]
[1744380647757,6.39036,1564.9,1564.7,59.507]
[1744380648097,13.21714,1565.0,1564.7,65.89784]
[1744380648296,6.39031,1564.9,1564.7,59.507]
[1744380648596,12.78086,1564.9,1564.7,59.507]
[1744380648801,13.21726,1565.0,1564.7,59.507]
[1744380648975,6.82718,1565.0,1564.7,59.507]
[1744380649376,6.3902,1564.9,1564.7,59.507]
[1744380650276,12.47901,1565.2,1564.8,6.39054]
[1744380650587,6.38973,1565.1,1564.7,71.84867]
[1744380650786,6.09,1565.2,1564.7,59.507]
[1744380650787,12.47897,1565.2,1564.7,59.507]
[1744380650981,6.3901,1565.0,1564.7,65.89797]
[1744380651186,6.3901,1565.0,1564.7,65.89787]
[1744380651383,6.3901,1565.0,1564.7,72.28872]
[1744380651572,6.39052,1564.9,1564.7,59.507]
[1744380651780,7.029642,1564.8,1564.7,59.507]
[1744380652498,6.39163,1564.6,1564.2,12.33171634]
[1744380652701,12.78341,1564.6,1564.3,9.724]
[1744380652997,6.39141,1564.6,1564.3,16.1165]
[1744380653197,12.78225,1564.7,1564.3,16.1165]
[1744380653399,6.09,1564.8,1564.5,6.39169]
[1744380653400,6.39069,1564.8,1564.5,6.39169]
[1744380653591,19.30789,1564.9,1564.6,6.39139]
[1744380653897,12.48021,1564.9,1564.6,14.38905]
[1744380654099,6.09,1564.9,1564.6,9.275968]
[1744380654398,18.87069,1564.9,1564.6,1.6064]
[1744380654604,12.4802,1564.9,1564.6,1.6064]
[1744380655280,6.39122,1564.7,1564.4,6.39219]
[1744380655467,6.39194,1564.5,1564.3,1.5781]
[1744380655671,6.39194,1564.5,1564.2,9.725]
[1744380655868,12.78409,1564.5,1564.2,9.725]
[1744380656276,6.09,1564.7,1564.2,11.98117]
[1744380656508,12.48118,1564.7,1564.3,12.78499]
[1744380656708,6.09,1564.7,1564.3,0.06392274]
[1744380656914,6.09,1564.9,1564.6,6.39129]
[1744380657127,13.21645,1565.1,1564.7,22.50766]
[1744380657271,13.21642,1565.1,1564.7,18.367646]
[1744380657473,6.38905,1565.2,1564.8,6.39037]
[1744380657815,6.38945,1565.1,1564.8,8.03196]
[1744380657974,6.38912,1565.2,1564.8,14.42241]
[1744380658577,6.38957,1565.1,1564.8,8.03196]
[1744380658802,6.38904,1565.2,1564.8,17.0623956]
[1744380659007,6.38959,1565.1,1564.8,2.6399656]
[1744380659208,6.39049,1564.9,1564.7,9.726]
[1744380659511,6.39085,1564.8,1564.6,9.726]
[1744380659684,14.5,1564.7,1564.6,9.726]
[1744380660215,14.5,1564.7,1564.6,16.1174]
[1744380660612,14.5,1564.7,1564.6,18.368304]
[1744380660908,14.5,1564.7,1564.4,7.97178]
[1744380661112,14.5,1564.7,1564.3,9.39237]
[1744380661328,6.39142,1564.6,1564.3,9.39237]
[1744380661482,12.78311,1564.6,1564.2,22.13733634]
[1744380661687,6.39183,1564.5,1564.2,22.13732634]
[1744380661883,6.39183,1564.5,1564.2,11.3648]
[1744380662115,12.78398,1564.5,1564.2,11.3648]
[1744380662297,6.09,1564.6,1564.2,9.726]
[1744380662298,6.39225,1564.4,1564.2,9.726]
[1744380662500,6.39263,1564.3,1564.2,9.726]
[1744380663411,7.714848,1564.3,1564.2,9.726]
[1744380663611,13.804848,1564.3,1564.2,9.726]
[1744380663814,6.39304,1564.2,1564.1,0.05]
[1744380664299,6.09,1564.3,1564.1,6.44333]
[1744380664504,12.4828,1564.3,1564.1,0.05]
[1744380664699,20.89304,1564.2,1564.1,0.05]
[1744380665087,14.5,1564.2,1564.1,0.05]
[1744380665294,20.89304,1564.2,1564.1,0.05]
[1744380665629,30.757927,1564.2,1564.1,0.05]
[1744380666414,33.757927,1564.2,1564.1,0.05]
[1744380666634,27.42034,1564.2,1564.1,0.05]
[1744380667524,26.98304,1564.2,1564.1,0.05]
[1744380668725,31.56351379,1564.2,1564.1,0.05]
[1744380669029,6.39537,1563.7,1563.4,9.728]
[1744380669235,6.5273,1563.8,1563.3,4.5265]
[1744380669535,6.39713,1563.2,1563.1,0.6]
[1744380669842,6.39688,1563.3,1563.1,0.6]
[1744380670043,6.39635,1563.4,1563.1,0.6]
[1744380670341,27.29132,1563.6,1563.3,6.39665]
[1744380670642,14.5,1563.6,1563.3,6.39653]
[1744380670850,27.29123,1563.6,1563.3,6.39653]
[1744380671008,20.89559,1563.6,1563.3,6.39653]
[1744380671208,14.5,1563.6,1563.4,6.39598]
[1744380671398,14.5,1563.6,1563.5,9.732]
[1744380672502,6.39593,1563.5,1563.2,4.37959634]
[1744380672741,14.5,1563.6,1563.3,6.3964]
[1744380673236,14.5,1563.6,1563.2,6.39704]
[1744380673237,27.29126,1563.6,1563.2,6.39704]
[1744380673446,6.39597,1563.5,1563.1,21.33457]
[1744380673639,6.39651,1563.4,1563.1,18.33457]
[1744380673841,6.39651,1563.4,1563.1,24.73195]
[1744380674136,12.79205,1563.5,1563.1,18.33447]
[1744380674338,6.396,1563.5,1563.1,18.33447]
[1744380674505,7.03608,1563.4,1563.1,11.9371]
[1744380674843,13.43258,1563.4,1563.1,18.3346]
[1744380675146,6.39713,1563.2,1563.1,10.332]
[1744380675561,6.39713,1563.2,1563.1,10.282]
[1744380676053,12.48689,1563.3,1563.1,10.282]
[1744380676224,18.88383,1563.3,1563.1,10.282]
[1744380676407,6.39713,1563.2,1563.1,10.282]
[1744380677631,12.48713,1563.2,1563.1,0.55]
[1744380677815,12.48713,1563.2,1562.6,49.829]
[1744380677816,6.39907,1562.8,1562.6,49.829]
[1744380678016,12.79805,1562.8,1562.6,49.829]
[1744380678233,6.40004,1562.5,1562.3,11.2862]
[1744380678447,6.40122,1562.2,1562.1,0.05]
[1744380678942,20.90122,1562.2,1562.1,0.05]
[1744380679828,6.84016,1561.8,1561.7,6.07574145]
[1744380680713,21.34016,1561.8,1561.7,6.07574145]
[1744380680919,24.114439,1561.8,1561.7,6.07574145]
[1744380681222,6.40368,1561.6,1561.5,7.50059239]
[1744380681411,6.84098,1561.6,1561.5,7.50059239]
[1744380681607,0.4373,1561.8,1561.5,13.90459239]
[1744380681814,6.40249,1561.9,1561.5,12.80794]
[1744380682014,14.5,1561.6,1561.4,16.11729]
[1744380682251,14.5,1561.6,1561.4,9.713]
[1744380682457,14.5,1561.6,1561.4,16.11746]
[1744380682656,14.5,1561.6,1561.5,6.40409]
[1744380682978,14.5,1561.6,1561.5,9.40409]
[1744380683163,14.5,1561.6,1561.5,16.50206734]
[1744380683450,6.40228,1562.0,1561.6,9.40362]
[1744380683654,6.83816,1562.3,1561.4,17.7796]
[1744380683813,6.40287,1561.8,1561.4,17.7796]
[1744380684011,6.40287,1561.8,1561.4,24.18395]
[1744380684217,6.40287,1561.8,1561.2,0.394617]
[1744380684218,6.40327,1561.7,1561.2,0.394617]
[1744380684435,6.40474,1561.4,1561.2,0.394617]
[1744380684640,6.40491,1561.3,1561.2,0.394617]
[1744380685546,9.40491,1561.3,1561.2,0.394617]
[1744380685974,24.45491,1561.3,1561.2,0.394617]
[1744380686149,28.021905,1561.3,1561.2,0.394617]
[1744380686448,27.471905,1561.3,1561.2,0.394617]
[1744380686951,24.471905,1561.3,1561.2,0.394617]
[1744380687728,18.066995,1561.3,1561.2,0.394617]
[1744380687927,21.34221,1561.3,1561.2,0.394617]
[1744380688752,14.5,1561.3,1561.2,0.394617]
[1744380688950,20.90491,1561.3,1561.2,0.394617]
[1744380690340,14.5,1561.3,1561.2,0.394617]
[1744380690539,20.90491,1561.3,1561.2,0.394617]
[1744380690741,14.5,1561.3,1561.2,0.394617]
[1744380690936,20.90491,1561.3,1561.2,0.394617]
[1744380691137,23.635867,1561.3,1561.2,0.394617]
[1744380693876,14.5,1561.3,1561.2,0.394617]
[1744380694340,20.90491,1561.3,1561.2,0.394617]
[1744380697452,24.34221,1561.3,1561.2,0.394617]
[1744380699042,24.89221,1561.3,1561.2,7e-06]
[1744380699443,9.40532,1561.2,1561.1,7e-06]
[1744380699635,25.70509166,1561.2,1561.1,7e-06]
[1744380700133,26.29349489,1561.2,1561.1,7e-06]
[1744380700362,15.18889855,1561.2,1561.1,7e-06]
[1744380700866,15.73889855,1561.2,1561.1,7e-06]
[1744380701536,15.18889855,1561.2,1561.1,7e-06]
[1744380702047,15.73889855,1561.2,1561.1,7e-06]
[1744380702363,22.46389855,1561.2,1561.1,7e-06]
[1744380702567,15.73889855,1561.2,1561.1,7e-06]
[1744380702866,20.11849489,1561.2,1561.1,7e-06]
[1744380703166,26.40849489,1561.2,1561.1,7e-06]
[1744380703365,26.7271827,1561.2,1561.1,7e-06]
[1744380703570,6.40916,1560.3,1560.1,1.6752]
[1744380703774,6.40943,1560.2,1560.1,0.05]
[1744380704474,20.90943,1560.2,1560.1,0.05]
[1744380704766,21.50084303,1560.2,1560.1,0.05]
[1744380706344,25.05084303,1560.2,1560.1,0.05]
[1744380706544,25.48814303,1560.2,1560.1,0.05]
[1744380706740,6.41107,1559.8,1559.7,0.394617]
[1744380707373,10.39837,1559.8,1559.7,0.394617]
[1744380707562,10.39837,1559.8,1559.7,7e-06]
[1744380707563,24.89837,1559.8,1559.7,7e-06]
[1744380707987,25.48978303,1559.8,1559.7,7e-06]
[1744380709339,6.41272,1559.4,1559.3,0.55]
[1744380709552,7.097722,1559.4,1559.3,0.55]
[1744380709951,10.68913503,1559.4,1559.3,0.55]
[1744380710171,25.18913503,1559.4,1559.3,0.55]
[1744380710547,25.73913503,1559.4,1559.3,0.55]
[1744380710747,25.18913503,1559.4,1559.3,0.55]
[1744380711075,24.50413303,1559.4,1559.3,0.55]
[1744380711391,21.50413303,1559.4,1559.3,0.55]
[1744380712478,25.05413303,1559.4,1559.3,0.55]
[1744380712667,21.50413303,1559.4,1559.3,0.55]
[1744380713590,15.09141303,1559.4,1559.3,0.55]
[1744380714212,15.09141303,1559.4,1559.3,6.96313]
[1744380714506,15.09141303,1559.4,1559.3,9.425768]
[1744380714864,14.5,1559.4,1559.3,9.425768]
[1744380715283,6.41041,1560.0,1559.4,6.41272]
[1744380715499,6.41041,1560.0,1559.7,6.41142]
[1744380715798,10.2401423,1560.2,1559.8,6.41104]
[1744380715977,12.81848,1560.3,1559.9,8.05505]
[1744380716176,6.4099,1560.1,1559.9,1.6446]
[1744380716508,20.91025,1560.0,1559.9,1.6446]
[1744380717020,14.5,1560.0,1559.9,1.6446]
[1744380717302,14.5,1560.0,1559.9,8.05526]
[1744380717480,14.5,1560.0,1559.9,1.6446]
[1744380717663,14.5,1560.0,1559.9,8.05526]
[1744380718187,14.5,1560.0,1559.9,1.6446]
[1744380718590,14.5,1560.0,1559.9,8.05526]
[1744380719104,14.5,1560.0,1559.9,1.6446]
[1744380720075,14.5,1560.0,1559.9,8.05526]
[1744380720267,14.5,1560.0,1559.9,9.501875]
[1744380720674,27.3209,1560.0,1559.7,11.2301]
[1744380720984,27.3209,1560.0,1559.7,9.709]
[1744380720985,6.41107,1559.8,1559.7,9.709]
[1744380721305,6.4119,1559.6,1559.5,1.5061]
[1744380721508,6.41272,1559.4,1559.3,2.0561]
[1744380721982,6.41272,1559.4,1559.3,0.55]
[1744380722382,7.695242,1559.4,1559.3,0.55]
[1744380722591,8.28806441,1559.4,1559.3,0.55]
[1744380722797,22.78806441,1559.4,1559.3,0.55]
[1744380723315,27.33506441,1559.4,1559.1,0.05]
[1744380723609,15.89013634,1559.2,1559.1,1e-05]
[1744380724081,30.39013634,1559.2,1559.1,1e-05]
[1744380724287,30.98295875,1559.2,1559.1,1e-05]
[1744380724485,30.98295875,1559.2,1558.1,0.444617]
[1744380724486,6.41743,1558.3,1558.1,0.444617]
[1744380724786,7.96313,1558.6,1558.1,6.862657]
[1744380724989,6.4168,1558.5,1558.1,6.862657]
[1744380725314,14.5,1558.2,1558.1,0.444617]
[1744380725517,14.5,1558.2,1558.1,6.862687]
[1744380725809,14.5,1558.2,1558.1,0.444617]
[1744380726394,14.5,1558.2,1558.1,6.862687]
[1744380726928,14.5,1558.2,1558.1,0.444617]
[1744380727092,14.5,1558.2,1558.1,6.862687]
[1744380727421,14.5,1558.2,1558.1,13.31513248]
[1744380727809,14.5,1558.2,1558.1,17.93753248]
[1744380728006,14.5,1558.2,1558.1,16.93753248]
[1744380728203,14.5,1558.2,1558.1,17.48753248]
[1744380728390,14.5,1558.2,1558.1,17.42871417]
[1744380728730,11.16499588,1559.1,1558.3,6.41694]
[1744380728931,6.41627,1558.6,1558.2,6.41747]
[1744380729089,6.41766,1558.2,1558.1,1.6224]
[1744380729427,20.91766,1558.2,1557.8,8.04452]
[1744380729924,6.41823,1558.1,1557.8,1.6254]
[1744380730226,18.92655,1558.1,1557.7,6.41956]
[1744380730396,12.83746,1558.0,1557.6,6.4201]
[1744380730724,6.41854,1558.0,1557.6,6.41983]
[1744380731025,1.06626157,1558.1,1557.5,17.67949]
[1744380731224,6.41922,1557.9,1557.5,17.67949]
[1744380731412,6.41922,1557.9,1557.5,24.09983]
[1744380731745,6.41922,1557.9,1557.5,17.67934]
[1744380731913,5.33021872,1557.9,1557.5,9.713]
[1744380732118,6.42013,1557.6,1557.5,9.713]
[1744380732427,27.34049,1557.6,1557.2,8.01131]
[1744380732812,6.42091,1557.5,1557.2,1.5899]
[1744380733016,6.42163,1557.3,1557.1,0.05]
[1744380733214,6.42061,1557.5,1557.1,0.05]
[1744380733416,14.5,1557.6,1557.2,6.42151]
[1744380733417,20.92013,1557.6,1557.2,6.42151]
[1744380733617,8.512781,1557.5,1557.1,6.47203]
[1744380733924,6.42069,1557.5,1557.1,6.47199]
[1744380734143,20.92013,1557.6,1557.3,6.4213]
[1744380734144,14.5,1557.6,1557.3,6.4213]
[1744380734291,20.92019,1557.6,1557.3,6.4213]
[1744380734495,14.5,1557.6,1557.2,6.42159]
[1744380734724,14.5,1557.6,1557.3,6.4212]
[1744380735300,14.5,1557.6,1557.3,7.96659]
[1744380735495,14.5,1557.6,1557.5,6.42054]
[1744380735897,14.5,1557.6,1557.5,16.13754]
[1744380736098,14.5,1557.6,1557.5,17.75804]
[1744380736330,14.5,1557.6,1557.5,20.75804]
[1744380736527,6.41685,1558.4,1558.1,6.41789]
[1744380736727,6.41737,1558.3,1558.0,11.2535]
[1744380736930,6.41658,1558.5,1558.1,6.41793]
[1744380737103,6.41658,1558.5,1558.2,6.41765]
[1744380737299,6.41606,1558.6,1558.2,6.41765]
[1744380737512,14.5,1558.4,1558.2,6.41751]
[1744380737835,14.5,1558.4,1558.1,6.41802]
[1744380738054,14.5,1558.4,1558.3,6.41724]
[1744380739126,14.5,1558.4,1558.2,6.41754]
[1744380739334,14.5,1558.4,1558.3,8.06924]
[1744380739530,14.5,1558.4,1558.3,1.652]
[1744380739731,14.5,1558.4,1558.2,9.691]
[1744380740332,6.41724,1558.3,1558.2,9.691]
[1744380740510,6.41772,1558.2,1557.9,1.6275]
[1744380741043,6.41741,1558.3,1557.9,1.6275]
[1744380741250,6.41741,1558.3,1557.9,8.04635]
[1744380741546,6.41725,1558.3,1557.9,8.04633]
[1744380741704,2.091725,1558.3,1557.8,9.69]
[1744380741905,14.5,1558.4,1557.8,9.69]
[1744380742109,14.5,1558.4,1558.1,8.06307]
[1744380742320,14.5,1558.4,1558.2,6.41752]
[1744380742517,14.5,1558.4,1558.2,6.41748]
[1744380742928,14.5,1558.4,1558.3,6.41724]
[1744380743130,14.5,1558.4,1558.3,17.390712]
[1744380743520,14.5,1558.4,1558.3,18.983712]
[1744380745213,14.5,1558.4,1558.3,11.283]
[1744380745741,14.5,1558.4,1558.3,17.70024]
[1744380746339,12.82921,1559.0,1558.5,6.41622]
[1744380746539,1.6584,1559.1,1558.4,3.06415729]
[1744380746739,6.41575,1558.7,1558.3,17.70008]
[1744380746943,12.83071,1558.8,1558.3,17.70008]
[1744380747143,12.83061,1558.8,1558.4,6.41668]
[1744380747340,6.41526,1558.8,1558.4,6.41672]
[1744380747643,6.41478,1558.9,1558.5,6.41603]
[1744380747940,6.41371,1559.2,1558.8,12.8301]
[1744380748104,6.41452,1559.0,1558.8,9.69]
[1744380748311,6.41412,1559.1,1558.8,9.69]
[1744380748540,12.82758,1559.2,1558.8,16.10491]
[1744380748715,6.41408,1559.1,1558.8,9.69]
[1744380749040,6.41355,1559.2,1558.8,16.10502]
[1744380749245,6.41408,1559.1,1558.8,9.69]
[1744380749743,6.41365,1559.2,1558.8,22.52022]
[1744380749928,6.41318,1559.3,1558.9,6.4147]
[1744380750125,6.41279,1559.4,1559.0,6.41408]
[1744380750330,0.59501745,1559.3,1559.0,6.41408]
[1744380750546,0.59501745,1559.3,1559.0,12.8283]
[1744380750852,7.00830745,1559.3,1558.9,6.41468]
[1744380751148,6.41359,1559.2,1558.9,6.41468]
[1744380751357,6.41453,1559.0,1558.8,9.69]
[1744380751652,6.41322,1559.3,1559.0,6.41429]
[1744380751959,6.41349,1559.3,1559.1,1.5635]
[1744380752165,6.41382,1559.2,1558.8,24.64847562]
[1744380752330,6.41463,1559.0,1558.6,6.41588]
[1744380752662,6.41542,1558.8,1558.6,1.552]
[1744380753066,6.41436,1559.0,1558.6,1.552]
[1744380753067,6.41488,1558.9,1558.6,7.96785]
[1744380753215,12.82988,1558.9,1558.6,7.96785]
[1744380753422,6.41488,1558.9,1558.6,1.552]
[1744380753643,6.41444,1559.0,1558.7,6.41555]
[1744380753843,6.41444,1559.0,1558.7,6.41559]
[1744380754239,0.641382,1559.2,1558.6,1.1239]
[1744380754447,12.31870835,1561.0,1559.2,4.20218909]
[1744380754738,7.62890122,1561.0,1560.1,1.5066]
[1744380754929,16.7528284,1562.0,1560.9,4.37959634]
[1744380755142,20.7548051,1562.8,1561.9,10.78204634]
[1744380755341,0.55,1563.2,1563.0,7.96355]
[1744380755553,0.55,1563.2,1563.0,12.34314634]
[1744380755734,0.55,1563.2,1563.0,15.34314634]
[1744380756131,6.34e-06,1563.1,1563.0,15.34314634]
[1744380756322,6.34e-06,1563.2,1563.0,12.34314634]
[1744380756527,0.05,1563.4,1563.1,3.0]
[1744380756758,1e-05,1563.4,1563.3,10.77631634]
[1744380756924,1e-05,1563.4,1563.3,6.39672]
[1744380757130,1e-05,1563.4,1563.3,13.77631634]
[1744380757382,1e-05,1563.4,1563.3,1.70847033]
[1744380757673,1e-05,1563.4,1563.0,6.39794]
[1744380757837,1e-05,1563.4,1563.2,4.37959634]
[1744380758528,1e-05,1563.4,1562.9,10.77763634]
[1744380758726,1e-05,1563.4,1563.3,6.39672]
[1744380759262,1e-05,1563.4,1563.3,14.81927907]
[1744380759558,1e-05,1563.4,1563.3,17.81927907]
[1744380759758,1e-05,1563.4,1563.3,8.82879445]
[1744380760382,7.93518,1563.8,1563.3,8.82879445]
[1744380760383,2.99921,1563.7,1563.3,4.11736347]
[1744380760584,6.39569,1563.6,1563.3,4.11736347]
[1744380760929,6.3951,1563.7,1563.3,3.71112809]
[1744380761160,6.39528,1563.7,1563.3,3.71112809]
[1744380761665,6.39528,1563.7,1563.0,11.03940336]
[1744380761871,6.3953,1563.7,1563.0,4.64148336]
[1744380762080,0.63953,1563.6,1563.0,4.64148336]
[1744380762235,6.39666,1563.4,1563.0,4.64148336]
[1744380762436,6.397,1563.3,1563.0,4.64148336]
[1744380762772,3.0,1563.5,1563.1,8.32731759]
[1744380762773,14.5,1563.2,1563.1,8.32731759]
[1744380763264,12.654,1563.5,1563.1,8.32731759]
[1744380763444,19.05023,1563.5,1563.1,8.32731759]
[1744380763647,6.39679,1563.3,1563.1,8.32731759]
[1744380763840,8.301603,1563.4,1563.1,8.32731759]
[1744380764249,14.5,1563.2,1563.1,8.32731759]
[1744380764768,14.5,1563.2,1562.7,6.39886]
[1744380765071,6.39737,1563.2,1562.6,6.27668336]
[1744380765273,0.639737,1563.1,1562.6,12.67615336]
[1744380765457,8.301373,1563.4,1562.6,12.67615336]
[1744380765458,6.39739,1563.2,1562.6,1.6352]
[1744380765656,6.39739,1563.2,1562.5,3.0]
[1744380765861,14.5,1563.0,1562.6,3.0]
[1744380766068,14.5,1563.0,1562.4,4.64148336]
[1744380766367,14.5,1563.0,1562.4,11.04162336]
[1744380766571,1.45,1562.9,1562.5,6.3999]
[1744380766769,1.45,1562.9,1562.4,6.95039]
[1744380766974,3.0,1563.2,1562.3,1.5019]
[1744380767276,20.89908,1562.8,1562.3,1.5019]
[1744380767449,20.89908,1562.8,1562.0,11.04349336]
[1744380767450,6.39997,1562.6,1562.0,4.64148336]
[1744380767773,6.39934,1562.7,1562.0,11.04319336]
[1744380767940,6.39959,1562.6,1562.1,0.55]
[1744380768139,0.639959,1562.5,1562.0,11.04327336]
[1744380768372,15.79894,1562.7,1562.0,11.04327336]
[1744380768572,15.79894,1562.7,1562.1,0.55]
[1744380768766,12.79898,1562.7,1562.1,0.55]
[1744380768969,6.39947,1562.7,1562.1,0.55]
[1744380769171,26.98895,1562.8,1562.2,6.95093]
[1744380769172,20.59,1562.8,1562.2,6.95093]
[1744380769469,2.059,1562.7,1562.2,13.35186]
[1744380769685,8.45835,1562.7,1562.1,3.55]
[1744380770039,8.45835,1562.7,1562.1,9.95149]
[1744380770337,2.059,1562.7,1562.1,9.95149]
[1744380770587,8.45819,1562.7,1562.1,0.55]
[1744380770784,14.5,1562.8,1562.4,0.55]
[1744380771244,6.39978,1562.6,1562.2,0.55]
[1744380771444,6.39918,1562.7,1562.2,0.55]